[Event "Titled Tuesday Blitz September 13 Early 2022"]
[White "Makarian, Rudik"]
[Black "Bortnyk, Olexandr"]
[WhiteFideId "44105681"]
[BlackFideId "14120828"]
[WhiteElo "2410"]
[BlackElo "2723"]
[Result "1-0"]
[Round "05"]
[TimeControl "180+1"]
[Date "2022.09.13"]
[WhiteClock "0:00:19"]
[BlackClock "0:00:01"]

1. d4 {[%clk 0:02:59]}  d6 {[%clk 0:03:00]} 2. Nf3 {[%clk 0:02:57]}  Nf6 {[%clk 0:03:00]} 3. c4 {[%clk 0:02:57]}  g6 {[%clk 0:02:59]} 4. Nc3 {[%clk 0:02:58]}  Bf5 {[%clk 0:02:59]} 5. g3 {[%clk 0:02:53]}  Bg7 {[%clk 0:03:00]} 6. Nh4 {[%clk 0:02:47]}  Bd7 {[%clk 0:02:55]} 7. Bg2 {[%clk 0:02:47]}  Nc6 {[%clk 0:02:52]} 8. Nf3 {[%clk 0:02:45]}  Qc8 {[%clk 0:02:52]} 9. h4 {[%clk 0:02:40]}  O-O {[%clk 0:02:43]} 10. Bf4 {[%clk 0:02:35]}  Re8 {[%clk 0:02:38]} 11. d5 {[%clk 0:02:20]}  Na5 {[%clk 0:02:34]} 12. Qd3 {[%clk 0:02:16]}  c5 {[%clk 0:02:25]} 13. Nd2 {[%clk 0:02:06]}  h5 {[%clk 0:01:45]} 14. O-O {[%clk 0:02:04]}  Ng4 {[%clk 0:01:38]} 15. b3 {[%clk 0:02:01]}  a6 {[%clk 0:01:29]} 16. a4 {[%clk 0:02:00]}  Qc7 {[%clk 0:00:49]} 17. Rab1 {[%clk 0:01:58]}  b5 {[%clk 0:00:44]} 18. axb5 {[%clk 0:01:57]}  axb5 {[%clk 0:00:45]} 19. Nxb5 {[%clk 0:01:51]}  Qb6 {[%clk 0:00:37]} 20. Bf3 {[%clk 0:01:27]}  Ne5 {[%clk 0:00:36]} 21. Bxe5 {[%clk 0:01:23]}  Bxe5 {[%clk 0:00:37]} 22. b4 {[%clk 0:01:17]}  cxb4 {[%clk 0:00:37]} 23. Rxb4 {[%clk 0:01:18]}  Bxg3 {[%clk 0:00:38]} 24. Bxh5 {[%clk 0:00:47]}  Bxh4 {[%clk 0:00:20]} 25. Bxg6 {[%clk 0:00:41]}  Bf6 {[%clk 0:00:21]} 26. Bxf7+ {[%clk 0:00:28]}  Kxf7 {[%clk 0:00:20]} 27. Qh7+ {[%clk 0:00:28]}  Bg7 {[%clk 0:00:20]} 28. c5 {[%clk 0:00:29]}  Nc4 {[%clk 0:00:04]} 29. Rxc4 {[%clk 0:00:23]}  dxc5 {[%clk 0:00:04]} 30. Rf4+ {[%clk 0:00:23]}  Qf6 {[%clk 0:00:05]} 31. Rxf6+ {[%clk 0:00:23]}  exf6 {[%clk 0:00:06]} 32. Nd6+ {[%clk 0:00:22]}  Kf8 {[%clk 0:00:06]} 33. Nxe8 {[%clk 0:00:22]}  Rxe8 {[%clk 0:00:07]} 34. Ne4 {[%clk 0:00:20]}  Re5 {[%clk 0:00:04]} 35. Ng3 {[%clk 0:00:19]}  Be8 {[%clk 0:00:02]} 36. Qc2 {[%clk 0:00:18]}  Rxd5 {[%clk 0:00:01]} 37. Rd1 {[%clk 0:00:19]} 1-0


[Site "https://www.chess.com"]

[Event "Titled Tuesday Blitz September 13 Early 2022"]
[White "Martinez Alcantara, Jose Eduardo"]
[Black "Pap, Gyula"]
[WhiteFideId "3805662"]
[BlackFideId "725323"]
[WhiteElo "2703"]
[BlackElo "2519"]
[Result "1-0"]
[Round "05"]
[TimeControl "180+1"]
[Date "2022.09.13"]
[WhiteClock "0:01:15"]
[BlackClock "0:00:01"]

1. e4 {[%clk 0:03:00]}  c6 {[%clk 0:03:00]} 2. d4 {[%clk 0:02:59]}  d5 {[%clk 0:03:00]} 3. e5 {[%clk 0:02:59]}  Bf5 {[%clk 0:03:00]} 4. h4 {[%clk 0:02:59]}  Qc7 {[%clk 0:02:58]} 5. Nc3 {[%clk 0:02:59]}  h6 {[%clk 0:02:45]} 6. g4 {[%clk 0:02:58]}  Bd7 {[%clk 0:02:46]} 7. Be3 {[%clk 0:02:56]}  h5 {[%clk 0:02:34]} 8. g5 {[%clk 0:02:56]}  g6 {[%clk 0:02:12]} 9. Bd3 {[%clk 0:02:54]}  Qc8 {[%clk 0:02:05]} 10. Nge2 {[%clk 0:02:50]}  Bf5 {[%clk 0:02:03]} 11. Ng3 {[%clk 0:02:50]}  Bxd3 {[%clk 0:02:02]} 12. Qxd3 {[%clk 0:02:51]}  e6 {[%clk 0:02:01]} 13. Nce2 {[%clk 0:02:45]}  Nd7 {[%clk 0:01:44]} 14. O-O {[%clk 0:02:44]}  Ne7 {[%clk 0:01:36]} 15. b3 {[%clk 0:02:44]}  Bg7 {[%clk 0:01:26]} 16. c4 {[%clk 0:02:42]}  Qd8 {[%clk 0:01:02]} 17. Rac1 {[%clk 0:02:27]}  Qa5 {[%clk 0:01:01]} 18. Bd2 {[%clk 0:02:25]}  Qa6 {[%clk 0:01:00]} 19. Qe3 {[%clk 0:02:12]}  c5 {[%clk 0:00:47]} 20. f4 {[%clk 0:02:03]}  cxd4 {[%clk 0:00:36]} 21. Nxd4 {[%clk 0:02:02]}  O-O {[%clk 0:00:33]} 22. Bb4 {[%clk 0:02:00]}  Rfe8 {[%clk 0:00:25]} 23. Bxe7 {[%clk 0:02:00]}  Rxe7 {[%clk 0:00:26]} 24. cxd5 {[%clk 0:02:01]}  exd5 {[%clk 0:00:25]} 25. Rc2 {[%clk 0:01:59]}  Rae8 {[%clk 0:00:19]} 26. Qf2 {[%clk 0:01:59]}  Qd3 {[%clk 0:00:16]} 27. Rd2 {[%clk 0:01:54]}  Qa6 {[%clk 0:00:14]} 28. Nf3 {[%clk 0:01:51]}  b6 {[%clk 0:00:10]} 29. Rfd1 {[%clk 0:01:51]}  Nc5 {[%clk 0:00:10]} 30. Rxd5 {[%clk 0:01:50]}  Ne6 {[%clk 0:00:10]} 31. Nd4 {[%clk 0:01:42]}  Nc7 {[%clk 0:00:10]} 32. Rd6 {[%clk 0:01:42]}  Bf8 {[%clk 0:00:08]} 33. Nc6 {[%clk 0:01:39]}  Re6 {[%clk 0:00:08]} 34. Rxe6 {[%clk 0:01:40]}  Nxe6 {[%clk 0:00:08]} 35. Ne4 {[%clk 0:01:33]}  Qb7 {[%clk 0:00:05]} 36. Nf6+ {[%clk 0:01:16]}  Kh8 {[%clk 0:00:05]} 37. Nxe8 {[%clk 0:01:16]}  Bc5 {[%clk 0:00:04]} 38. Nd4 {[%clk 0:01:17]}  Nxd4 {[%clk 0:00:02]} 39. Rxd4 {[%clk 0:01:18]}  Qa6 {[%clk 0:00:01]} 40. Nf6 {[%clk 0:01:15]} 1-0


[Site "https://www.chess.com"]

[Event "Titled Tuesday Blitz September 13 Early 2022"]
[White "Pultinevicius, Paulius"]
[Black "Melikyan, Gnel"]
[WhiteFideId "12809390"]
[BlackFideId "54109990"]
[WhiteElo "2472"]
[BlackElo "1772"]
[Result "1-0"]
[Round "05"]
[TimeControl "180+1"]
[Date "2022.09.13"]
[WhiteClock "0:02:11"]
[BlackClock "0:00:34"]

1. d4 {[%clk 0:03:00]}  Nf6 {[%clk 0:02:59]} 2. c4 {[%clk 0:03:00]}  g6 {[%clk 0:02:58]} 3. Nc3 {[%clk 0:03:00]}  Bg7 {[%clk 0:02:58]} 4. e4 {[%clk 0:03:01]}  d6 {[%clk 0:02:57]} 5. Nf3 {[%clk 0:03:00]}  O-O {[%clk 0:02:57]} 6. h3 {[%clk 0:03:01]}  e5 {[%clk 0:02:57]} 7. dxe5 {[%clk 0:03:02]}  dxe5 {[%clk 0:02:57]} 8. Qxd8 {[%clk 0:03:03]}  Rxd8 {[%clk 0:02:57]} 9. Bg5 {[%clk 0:03:04]}  Re8 {[%clk 0:02:24]} 10. O-O-O {[%clk 0:03:03]}  Nc6 {[%clk 0:02:08]} 11. Nb5 {[%clk 0:02:45]}  Re7 {[%clk 0:02:02]} 12. Nc3 {[%clk 0:02:41]}  Be6 {[%clk 0:01:53]} 13. Nd5 {[%clk 0:02:40]}  Bxd5 {[%clk 0:01:51]} 14. cxd5 {[%clk 0:02:40]}  Nxe4 {[%clk 0:01:46]} 15. dxc6 {[%clk 0:02:32]}  Nxg5 {[%clk 0:01:45]} 16. cxb7 {[%clk 0:02:33]}  Rb8 {[%clk 0:01:43]} 17. Nxg5 {[%clk 0:02:32]}  Bh6 {[%clk 0:01:43]} 18. h4 {[%clk 0:02:30]}  f6 {[%clk 0:01:42]} 19. Bc4+ {[%clk 0:02:24]}  Kg7 {[%clk 0:01:41]} 20. f4 {[%clk 0:02:25]}  exf4 {[%clk 0:01:08]} 21. Ne6+ {[%clk 0:02:24]}  Kf7 {[%clk 0:01:03]} 22. Rd8 {[%clk 0:02:14]}  f3+ {[%clk 0:00:58]} 23. Kb1 {[%clk 0:02:12]}  fxg2 {[%clk 0:00:58]} 24. Rg1 {[%clk 0:02:12]}  Re8 {[%clk 0:00:34]} 25. Nxc7+ {[%clk 0:02:11]} 1-0


[Site "https://www.chess.com"]

[Event "Titled Tuesday Blitz September 13 Early 2022"]
[White "Rosen, Eric"]
[Black "Movahed, Sina"]
[WhiteFideId "2032562"]
[BlackFideId "42520835"]
[WhiteElo "2362"]
[BlackElo "2117"]
[Result "0-1"]
[Round "05"]
[TimeControl "180+1"]
[Date "2022.09.13"]
[WhiteClock "0:00:02"]
[BlackClock "0:00:12"]

1. d4 {[%clk 0:03:00]}  Nf6 {[%clk 0:02:59]} 2. Bf4 {[%clk 0:02:59]}  c5 {[%clk 0:02:58]} 3. e3 {[%clk 0:02:59]}  g6 {[%clk 0:02:56]} 4. c3 {[%clk 0:02:52]}  Bg7 {[%clk 0:02:54]} 5. dxc5 {[%clk 0:02:46]}  O-O {[%clk 0:02:52]} 6. Nd2 {[%clk 0:02:45]}  Nh5 {[%clk 0:02:39]} 7. Bg5 {[%clk 0:02:45]}  h6 {[%clk 0:02:34]} 8. Bh4 {[%clk 0:02:45]}  Nc6 {[%clk 0:02:32]} 9. Be2 {[%clk 0:02:45]}  Nf6 {[%clk 0:02:30]} 10. Ngf3 {[%clk 0:02:43]}  b6 {[%clk 0:02:20]} 11. cxb6 {[%clk 0:02:41]}  Qxb6 {[%clk 0:02:21]} 12. Nc4 {[%clk 0:02:41]}  Qc7 {[%clk 0:02:21]} 13. Bg3 {[%clk 0:02:41]}  d6 {[%clk 0:02:21]} 14. O-O {[%clk 0:02:41]}  Bb7 {[%clk 0:02:19]} 15. Qa4 {[%clk 0:02:33]}  Rfc8 {[%clk 0:02:16]} 16. Rfd1 {[%clk 0:02:28]}  Ne4 {[%clk 0:02:14]} 17. Rac1 {[%clk 0:02:20]}  Rab8 {[%clk 0:02:13]} 18. Ncd2 {[%clk 0:02:07]}  Nxg3 {[%clk 0:01:54]} 19. hxg3 {[%clk 0:02:08]}  Ba8 {[%clk 0:01:53]} 20. b3 {[%clk 0:02:08]}  e6 {[%clk 0:01:48]} 21. g4 {[%clk 0:01:41]}  Ne7 {[%clk 0:01:36]} 22. g5 {[%clk 0:01:07]}  h5 {[%clk 0:01:27]} 23. Ne4 {[%clk 0:01:07]}  Bxe4 {[%clk 0:01:25]} 24. Qxe4 {[%clk 0:01:06]}  Bxc3 {[%clk 0:01:19]} 25. Ba6 {[%clk 0:00:51]}  Rd8 {[%clk 0:00:43]} 26. Qd3 {[%clk 0:00:51]}  Nd5 {[%clk 0:00:36]} 27. a3 {[%clk 0:00:13]}  Qa5 {[%clk 0:00:22]} 28. Bc4 {[%clk 0:00:12]}  Bb2 {[%clk 0:00:22]} 29. Rb1 {[%clk 0:00:08]}  Bxa3 {[%clk 0:00:19]} 30. Bxd5 {[%clk 0:00:08]}  Qxd5 {[%clk 0:00:17]} 31. Qxd5 {[%clk 0:00:09]}  exd5 {[%clk 0:00:18]} 32. Rxd5 {[%clk 0:00:10]}  Bc5 {[%clk 0:00:18]} 33. Nd2 {[%clk 0:00:09]}  Rb4 {[%clk 0:00:17]} 34. Kf1 {[%clk 0:00:07]}  Rdb8 {[%clk 0:00:18]} 35. Ke2 {[%clk 0:00:07]}  a5 {[%clk 0:00:18]} 36. Ra1 {[%clk 0:00:08]}  R8b5 {[%clk 0:00:18]} 37. Kd3 {[%clk 0:00:06]}  Kf8 {[%clk 0:00:18]} 38. f4 {[%clk 0:00:04]}  Ke7 {[%clk 0:00:18]} 39. g3 {[%clk 0:00:03]}  Ke6 {[%clk 0:00:18]} 40. e4 {[%clk 0:00:02]}  Kd7 {[%clk 0:00:16]} 41. Ra2 {[%clk 0:00:01]}  Kc6 {[%clk 0:00:16]} 42. Kc3 {[%clk 0:00:01]}  Rxe4 {[%clk 0:00:15]} 43. Nxe4 {[%clk 0:00:02]}  Kxd5 {[%clk 0:00:15]} 44. Nf6+ {[%clk 0:00:03]}  Kc6 {[%clk 0:00:15]} 45. Re2 {[%clk 0:00:02]}  Bb4+ {[%clk 0:00:15]} 46. Kd3 {[%clk 0:00:02]}  Rc5 {[%clk 0:00:14]} 47. Re7 {[%clk 0:00:03]}  Rc3+ {[%clk 0:00:14]} 48. Kd4 {[%clk 0:00:03]}  Rxg3 {[%clk 0:00:13]} 49. Nd5 {[%clk 0:00:03]}  Bc5+ {[%clk 0:00:13]} 50. Kc4 {[%clk 0:00:03]}  Bb6 {[%clk 0:00:09]} 51. Nxb6 {[%clk 0:00:03]}  Kxb6 {[%clk 0:00:10]} 52. Rxf7 {[%clk 0:00:04]}  Rf3 {[%clk 0:00:10]} 53. Rf6 {[%clk 0:00:04]}  Kc6 {[%clk 0:00:11]} 54. Kd4 {[%clk 0:00:03]}  h4 {[%clk 0:00:11]} 55. Ke4 {[%clk 0:00:04]}  Rxb3 {[%clk 0:00:12]} 56. Rxg6 {[%clk 0:00:04]}  h3 {[%clk 0:00:12]} 57. Rh6 {[%clk 0:00:05]}  a4 {[%clk 0:00:13]} 58. g6 {[%clk 0:00:05]}  Rg3 {[%clk 0:00:12]} 59. f5 {[%clk 0:00:05]}  a3 {[%clk 0:00:13]} 60. g7 {[%clk 0:00:02]}  Rxg7 {[%clk 0:00:12]} 61. Rxh3 {[%clk 0:00:02]}  Ra7 {[%clk 0:00:12]} 62. f6 {[%clk 0:00:02]}  a2 {[%clk 0:00:12]} 63. f7 {[%clk 0:00:02]}  a1=Q {[%clk 0:00:12]} 0-1


[Site "https://www.chess.com"]

[Event "Titled Tuesday Blitz September 13 Early 2022"]
[White "Samsonkin, Artiom"]
[Black "Dubov, Daniil"]
[WhiteFideId "13503111"]
[BlackFideId "24126055"]
[WhiteElo "2524"]
[BlackElo "2791"]
[Result "0-1"]
[Round "05"]
[TimeControl "180+1"]
[Date "2022.09.13"]
[WhiteClock "0:00:02"]
[BlackClock "0:01:09"]

1. e4 {[%clk 0:02:57]}  c5 {[%clk 0:02:59]} 2. Nf3 {[%clk 0:02:56]}  d6 {[%clk 0:02:59]} 3. d4 {[%clk 0:02:57]}  cxd4 {[%clk 0:03:00]} 4. Qxd4 {[%clk 0:02:58]}  Nc6 {[%clk 0:02:59]} 5. Bb5 {[%clk 0:02:58]}  Bd7 {[%clk 0:03:00]} 6. Bxc6 {[%clk 0:02:59]}  Bxc6 {[%clk 0:03:01]} 7. Nc3 {[%clk 0:02:59]}  h6 {[%clk 0:02:59]} 8. Be3 {[%clk 0:02:25]}  e5 {[%clk 0:02:57]} 9. Qd3 {[%clk 0:02:23]}  Nf6 {[%clk 0:02:57]} 10. h3 {[%clk 0:02:14]}  Be7 {[%clk 0:02:56]} 11. O-O {[%clk 0:01:42]}  b5 {[%clk 0:02:43]} 12. a3 {[%clk 0:01:38]}  O-O {[%clk 0:02:42]} 13. Rad1 {[%clk 0:01:25]}  a5 {[%clk 0:02:33]} 14. Nh4 {[%clk 0:00:56]}  b4 {[%clk 0:02:09]} 15. axb4 {[%clk 0:00:53]}  axb4 {[%clk 0:02:10]} 16. Nd5 {[%clk 0:00:40]}  Nxd5 {[%clk 0:02:06]} 17. exd5 {[%clk 0:00:39]}  Bb7 {[%clk 0:01:50]} 18. Nf5 {[%clk 0:00:36]}  Ba6 {[%clk 0:01:49]} 19. Qe4 {[%clk 0:00:36]}  Bxf1 {[%clk 0:01:49]} 20. Qg4 {[%clk 0:00:35]}  Bg5 {[%clk 0:01:49]} 21. h4 {[%clk 0:00:24]}  Be2 {[%clk 0:01:34]} 22. Qxe2 {[%clk 0:00:24]}  Bxe3 {[%clk 0:01:34]} 23. fxe3 {[%clk 0:00:20]}  g6 {[%clk 0:01:33]} 24. Nxh6+ {[%clk 0:00:19]}  Kg7 {[%clk 0:01:33]} 25. Ng4 {[%clk 0:00:19]}  Qxh4 {[%clk 0:01:28]} 26. Rf1 {[%clk 0:00:09]}  f5 {[%clk 0:01:27]} 27. Nf2 {[%clk 0:00:07]}  Rac8 {[%clk 0:01:23]} 28. Qb5 {[%clk 0:00:04]}  Rf7 {[%clk 0:01:11]} 29. e4 {[%clk 0:00:02]}  Rxc2 {[%clk 0:01:09]} 0-1


[Site "https://www.chess.com"]

[Event "Titled Tuesday Blitz September 13 Early 2022"]
[White "Seo, Jung Min"]
[Black "Oparin, Grigoriy"]
[WhiteFideId "1734687"]
[BlackFideId "24125890"]
[WhiteElo "2455"]
[BlackElo "2639"]
[Result "0-1"]
[Round "05"]
[TimeControl "180+1"]
[Date "2022.09.13"]
[WhiteClock "0:00:08"]
[BlackClock "0:00:09"]

1. e4 {[%clk 0:02:56]}  d5 {[%clk 0:02:59]} 2. exd5 {[%clk 0:02:55]}  Qxd5 {[%clk 0:03:00]} 3. Nc3 {[%clk 0:02:55]}  Qd6 {[%clk 0:03:00]} 4. d4 {[%clk 0:02:55]}  Nf6 {[%clk 0:03:00]} 5. Nf3 {[%clk 0:02:54]}  Bg4 {[%clk 0:02:58]} 6. Be2 {[%clk 0:02:54]}  e6 {[%clk 0:02:55]} 7. h3 {[%clk 0:02:51]}  Bxf3 {[%clk 0:02:54]} 8. Bxf3 {[%clk 0:02:51]}  Nc6 {[%clk 0:02:55]} 9. O-O {[%clk 0:02:44]}  O-O-O {[%clk 0:02:54]} 10. Nb5 {[%clk 0:02:41]}  Qb4 {[%clk 0:02:48]} 11. Bxc6 {[%clk 0:02:35]}  bxc6 {[%clk 0:02:48]} 12. Nc3 {[%clk 0:02:30]}  Qxd4 {[%clk 0:02:40]} 13. Qf3 {[%clk 0:02:29]}  Qc4 {[%clk 0:02:36]} 14. b3 {[%clk 0:02:22]}  Qa6 {[%clk 0:02:28]} 15. Bg5 {[%clk 0:02:06]}  Be7 {[%clk 0:02:29]} 16. Ne4 {[%clk 0:02:03]}  Nxe4 {[%clk 0:01:54]} 17. Bxe7 {[%clk 0:02:02]}  Rd7 {[%clk 0:01:54]} 18. Qxe4 {[%clk 0:01:51]}  Rxe7 {[%clk 0:01:54]} 19. Rfd1 {[%clk 0:01:51]}  Qb5 {[%clk 0:01:44]} 20. c4 {[%clk 0:01:48]}  Qb6 {[%clk 0:01:36]} 21. Rd3 {[%clk 0:01:42]}  Kb7 {[%clk 0:01:23]} 22. Rad1 {[%clk 0:01:41]}  Qc5 {[%clk 0:01:20]} 23. b4 {[%clk 0:01:25]}  Qf5 {[%clk 0:01:20]} 24. Qd4 {[%clk 0:01:25]}  f6 {[%clk 0:01:01]} 25. Ra3 {[%clk 0:01:16]}  Ra8 {[%clk 0:00:56]} 26. Ra5 {[%clk 0:01:13]}  e5 {[%clk 0:00:54]} 27. Qc5 {[%clk 0:01:05]}  Rd7 {[%clk 0:00:54]} 28. Re1 {[%clk 0:00:52]}  Rd6 {[%clk 0:00:29]} 29. a4 {[%clk 0:00:40]}  Qd3 {[%clk 0:00:29]} 30. b5 {[%clk 0:00:38]}  Qd4 {[%clk 0:00:27]} 31. bxc6+ {[%clk 0:00:36]}  Rxc6 {[%clk 0:00:28]} 32. Rb5+ {[%clk 0:00:34]}  Rb6 {[%clk 0:00:28]} 33. Qb4 {[%clk 0:00:16]}  a5 {[%clk 0:00:14]} 34. Qb3 {[%clk 0:00:13]}  Rd8 {[%clk 0:00:08]} 35. c5 {[%clk 0:00:12]}  Qxc5 {[%clk 0:00:09]} 36. Rxc5 {[%clk 0:00:07]}  Rxb3 {[%clk 0:00:09]} 37. Rxa5 {[%clk 0:00:08]}  Kb6 {[%clk 0:00:09]} 0-1


[Site "https://www.chess.com"]

[Event "Titled Tuesday Blitz September 13 Early 2022"]
[White "Sorkin, Igor"]
[Black "Acor, Corey"]
[WhiteFideId "2803283"]
[BlackFideId "2024861"]
[WhiteElo "2401"]
[BlackElo "2340"]
[Result "1/2-1/2"]
[Round "05"]
[TimeControl "180+1"]
[Date "2022.09.13"]
[WhiteClock "0:00:11"]
[BlackClock "0:00:11"]

1. c4 {[%clk 0:03:00]}  e5 {[%clk 0:02:59]} 2. d3 {[%clk 0:03:00]}  Nc6 {[%clk 0:03:00]} 3. Nf3 {[%clk 0:03:00]}  g6 {[%clk 0:03:00]} 4. g3 {[%clk 0:02:59]}  Bg7 {[%clk 0:03:00]} 5. Bg2 {[%clk 0:03:00]}  d6 {[%clk 0:03:01]} 6. O-O {[%clk 0:03:00]}  h6 {[%clk 0:03:00]} 7. Nc3 {[%clk 0:02:59]}  Be6 {[%clk 0:02:58]} 8. Rb1 {[%clk 0:02:58]}  f5 {[%clk 0:02:57]} 9. Ne1 {[%clk 0:02:54]}  Nf6 {[%clk 0:02:55]} 10. b4 {[%clk 0:02:54]}  d5 {[%clk 0:02:55]} 11. cxd5 {[%clk 0:02:50]}  Nxd5 {[%clk 0:02:55]} 12. Bd2 {[%clk 0:02:38]}  O-O {[%clk 0:02:33]} 13. b5 {[%clk 0:02:37]}  Nce7 {[%clk 0:02:21]} 14. Qc2 {[%clk 0:02:22]}  Rc8 {[%clk 0:02:11]} 15. Nxd5 {[%clk 0:01:33]}  Nxd5 {[%clk 0:02:10]} 16. Nf3 {[%clk 0:01:25]}  g5 {[%clk 0:02:00]} 17. Rfc1 {[%clk 0:01:23]}  e4 {[%clk 0:01:32]} 18. dxe4 {[%clk 0:01:03]}  fxe4 {[%clk 0:01:33]} 19. Qxe4 {[%clk 0:01:03]}  Bf5 {[%clk 0:01:32]} 20. Qc4 {[%clk 0:01:03]}  Bxb1 {[%clk 0:01:30]} 21. Nxg5 {[%clk 0:01:04]}  hxg5 {[%clk 0:00:57]} 22. Bxd5+ {[%clk 0:01:03]}  Kh8 {[%clk 0:00:47]} 23. Rxb1 {[%clk 0:01:00]}  c6 {[%clk 0:00:47]} 24. bxc6 {[%clk 0:01:00]}  bxc6 {[%clk 0:00:48]} 25. Be6 {[%clk 0:01:00]}  Qxd2 {[%clk 0:00:45]} 26. Bxc8 {[%clk 0:01:01]}  Rxc8 {[%clk 0:00:45]} 27. Rb7 {[%clk 0:00:53]}  Rf8 {[%clk 0:00:32]} 28. Kg2 {[%clk 0:00:52]}  a5 {[%clk 0:00:25]} 29. Qg4 {[%clk 0:00:48]}  Qd5+ {[%clk 0:00:20]} 30. Kh3 {[%clk 0:00:16]}  Qf5 {[%clk 0:00:19]} 31. f3 {[%clk 0:00:15]}  Qxg4+ {[%clk 0:00:18]} 32. Kxg4 {[%clk 0:00:15]}  Re8 {[%clk 0:00:17]} 33. e4 {[%clk 0:00:15]}  Re5 {[%clk 0:00:17]} 34. Rc7 {[%clk 0:00:12]}  Rc5 {[%clk 0:00:17]} 35. f4 {[%clk 0:00:11]}  gxf4 {[%clk 0:00:17]} 36. gxf4 {[%clk 0:00:12]}  Rc2 {[%clk 0:00:15]} 37. h4 {[%clk 0:00:12]}  c5 {[%clk 0:00:12]} 38. e5 {[%clk 0:00:10]}  Kg8 {[%clk 0:00:12]} 39. Kf5 {[%clk 0:00:10]}  Rxa2 {[%clk 0:00:09]} 40. Rxc5 {[%clk 0:00:10]}  Bf8 {[%clk 0:00:09]} 41. Rc8 {[%clk 0:00:10]}  a4 {[%clk 0:00:09]} 42. e6 {[%clk 0:00:09]}  Kg7 {[%clk 0:00:10]} 43. Rc7+ {[%clk 0:00:08]}  Kh6 {[%clk 0:00:10]} 44. e7 {[%clk 0:00:09]}  Bxe7 {[%clk 0:00:09]} 45. Rxe7 {[%clk 0:00:10]}  a3 {[%clk 0:00:08]} 46. Ra7 {[%clk 0:00:10]}  Rh2 {[%clk 0:00:07]} 47. Rxa3 {[%clk 0:00:08]}  Rxh4 {[%clk 0:00:08]} 48. Ra8 {[%clk 0:00:09]}  Kh7 {[%clk 0:00:09]} 49. Ra7+ {[%clk 0:00:09]}  Kg8 {[%clk 0:00:09]} 50. Kg5 {[%clk 0:00:09]}  Rh1 {[%clk 0:00:08]} 51. Ra8+ {[%clk 0:00:10]}  Kf7 {[%clk 0:00:09]} 52. Ra7+ {[%clk 0:00:11]}  Kf8 {[%clk 0:00:09]} 53. Ra8+ {[%clk 0:00:11]}  Kf7 {[%clk 0:00:10]} 54. Ra7+ {[%clk 0:00:12]}  Kf8 {[%clk 0:00:10]} 55. Ra8+ {[%clk 0:00:11]}  Kf7 {[%clk 0:00:11]} 1/2-1/2


[Site "https://www.chess.com"]

[Event "Titled Tuesday Blitz September 13 Early 2022"]
[White "Sychev, Klementy"]
[Black "Zhigalko, Sergei"]
[WhiteFideId "4114060"]
[BlackFideId "13502956"]
[WhiteElo "2564"]
[BlackElo "2662"]
[Result "0-1"]
[Round "05"]
[TimeControl "180+1"]
[Date "2022.09.13"]
[WhiteClock "0:00:03"]
[BlackClock "0:00:08"]

1. d4 {[%clk 0:03:00]}  Nf6 {[%clk 0:02:59]} 2. c4 {[%clk 0:03:00]}  e6 {[%clk 0:02:59]} 3. Nc3 {[%clk 0:03:01]}  Bb4 {[%clk 0:02:59]} 4. Bf4 {[%clk 0:03:02]}  O-O {[%clk 0:02:58]} 5. Qb3 {[%clk 0:03:01]}  a5 {[%clk 0:02:48]} 6. a3 {[%clk 0:03:00]}  Bxc3+ {[%clk 0:02:45]} 7. Qxc3 {[%clk 0:03:01]}  d6 {[%clk 0:02:40]} 8. f3 {[%clk 0:02:49]}  Nh5 {[%clk 0:02:15]} 9. Bg3 {[%clk 0:02:43]}  Nc6 {[%clk 0:01:55]} 10. Bf2 {[%clk 0:02:38]}  e5 {[%clk 0:01:38]} 11. d5 {[%clk 0:02:35]}  Ne7 {[%clk 0:01:35]} 12. g4 {[%clk 0:02:29]}  Nf6 {[%clk 0:01:25]} 13. e4 {[%clk 0:02:26]}  Nd7 {[%clk 0:01:24]} 14. Ne2 {[%clk 0:02:18]}  Nc5 {[%clk 0:01:22]} 15. Ng3 {[%clk 0:02:16]}  Ng6 {[%clk 0:01:14]} 16. h4 {[%clk 0:02:14]}  Re8 {[%clk 0:01:08]} 17. O-O-O {[%clk 0:02:06]}  Nf4 {[%clk 0:00:59]} 18. Kb1 {[%clk 0:01:49]}  Ra6 {[%clk 0:00:52]} 19. Nf5 {[%clk 0:01:32]}  a4 {[%clk 0:00:51]} 20. Be3 {[%clk 0:01:27]}  Bxf5 {[%clk 0:00:35]} 21. gxf5 {[%clk 0:01:27]}  Rb6 {[%clk 0:00:36]} 22. Qc2 {[%clk 0:00:38]}  Rb3 {[%clk 0:00:35]} 23. Bc1 {[%clk 0:00:17]}  c6 {[%clk 0:00:27]} 24. Ka2 {[%clk 0:00:11]}  Rxf3 {[%clk 0:00:21]} 25. dxc6 {[%clk 0:00:09]}  bxc6 {[%clk 0:00:22]} 26. h5 {[%clk 0:00:08]}  h6 {[%clk 0:00:20]} 27. Rg1 {[%clk 0:00:08]}  Kf8 {[%clk 0:00:18]} 28. Bg2 {[%clk 0:00:07]}  Rg3 {[%clk 0:00:14]} 29. Bh1 {[%clk 0:00:07]}  Rxg1 {[%clk 0:00:15]} 30. Rxg1 {[%clk 0:00:07]}  Qb6 {[%clk 0:00:16]} 31. Rg3 {[%clk 0:00:05]}  Qb3+ {[%clk 0:00:08]} 32. Rxb3 {[%clk 0:00:02]}  axb3+ {[%clk 0:00:09]} 33. Qxb3 {[%clk 0:00:02]}  Nxb3 {[%clk 0:00:10]} 34. Kxb3 {[%clk 0:00:03]}  Nd3 {[%clk 0:00:07]} 35. Be3 {[%clk 0:00:02]}  Rb8+ {[%clk 0:00:08]} 36. Kc3 {[%clk 0:00:02]}  Nxb2 {[%clk 0:00:08]} 37. Bf3 {[%clk 0:00:02]}  Na4+ {[%clk 0:00:08]} 38. Kc2 {[%clk 0:00:03]}  Rb2+ {[%clk 0:00:08]} 39. Kc1 {[%clk 0:00:03]}  Rb3 {[%clk 0:00:08]} 40. Kd2 {[%clk 0:00:03]}  Rxa3 {[%clk 0:00:08]} 0-1


[Site "https://www.chess.com"]